fUSD/lending_fUSD_20251017
["ID","MTS","AMOUNT","RATE_DAILY","PERIOD"]
[391633954,1760712642028,-500.0,0.00024657,2]
[391633955,1760712642037,-500.0,0.00024657,2]
[391633956,1760712642046,-500.0,0.00024657,2]
[391633957,1760712642055,-500.0,0.00024657,2]
[391633958,1760712642063,-500.0,0.00024657,2]
[391633959,1760712642074,-500.0,0.00024657,2]
[391633960,1760712642084,-500.0,0.00024657,2]
[391633961,1760712642093,-500.0,0.00024657,2]
[391633962,1760712642102,-500.0,0.00024657,2]
[391633963,1760712642111,-500.0,0.00024657,2]
[391633964,1760712642119,-500.0,0.00024657,2]
[391633965,1760712642128,-500.0,0.00024657,2]
[391633966,1760712642138,-500.0,0.00024657,2]
[391633967,1760712642147,-500.0,0.00024657,2]
[391633968,1760712642155,-645.55284731,0.00024657,2]
[391633969,1760712642164,-500.0,0.00024657,2]
[391633970,1760712642173,-500.85536603,0.00024657,2]
[391633971,1760712642182,-500.0,0.00024657,2]
[391633972,1760712642191,-500.0,0.00024657,2]
[391633973,1760712642200,-501.95107553,0.00024657,2]
[391633974,1760712642209,-500.0,0.00024657,2]
[391633975,1760712642218,-501.61862241,0.00024657,2]
[391633976,1760712642227,-501.10037917,0.00024657,2]
[391633977,1760712642235,-500.0,0.00024657,2]
[391633978,1760712642244,-500.0,0.00024657,2]
[391633979,1760712642254,-501.21010484,0.00024657,2]
[391633980,1760712642263,-500.0,0.00024657,2]
[391633981,1760712642271,-500.0,0.00024657,2]
[391633982,1760712642281,-500.0,0.00024657,2]
[391633983,1760712642290,-500.0,0.00024657,2]
[391633984,1760712642299,-500.0,0.00024657,2]
[391633985,1760712642307,-500.0,0.00024657,2]
[391633986,1760712642316,-500.0,0.00024657,2]
[391633987,1760712642331,-460.05715661,0.00024657,2]
[391633988,1760712642339,-500.0,0.00024657,2]
[391633989,1760712642348,-500.0,0.00024657,2]
[391633990,1760712642357,-485.35394415,0.00024657,2]
[391633991,1760712642366,-482.81853886,0.00024657,2]
[391633992,1760712642375,-500.0,0.00024657,2]
[391633993,1760712642384,-500.0,0.00024657,2]
[391633994,1760712642394,-500.0,0.00024657,2]
[391633995,1760712642403,-500.0,0.00024657,2]
[391633996,1760712642412,-500.0,0.00024657,2]
[391633997,1760712642421,-500.0,0.00024657,2]
[391633998,1760712642430,-513.84241688,0.00024657,2]
[391633999,1760712642439,-500.0,0.00024657,2]
[391634000,1760712642447,-500.0,0.00024657,2]
[391634001,1760712642456,-570.07725865,0.00024657,2]
[391634002,1760712642465,-500.0,0.00024657,2]
[391634003,1760712642474,-500.0,0.00024657,2]
[391634004,1760712642483,-500.0,0.00024657,2]
[391634005,1760712642492,-500.0,0.00024657,2]
[391634006,1760712642500,-500.0,0.00024657,2]
[391634007,1760712642509,-500.0,0.00024657,2]
[391634008,1760712642518,-327.30599358,0.00024657,2]
[391634009,1760712642527,-500.0,0.00024657,2]
[391634010,1760712642536,-501.24742477,0.00024657,2]
[391634011,1760712642545,-500.0,0.00024657,2]
[391634012,1760712642554,-500.0,0.00024657,2]
[391634013,1760712642563,-500.0,0.00024657,2]
[391634014,1760712642574,-500.0,0.00024657,2]
[391634015,1760712642583,-500.95605248,0.00024657,2]
[391634016,1760712642592,-500.0,0.00024657,2]
[391634017,1760712642601,-500.0,0.00024657,2]
[391634018,1760712642611,-500.0,0.00024657,2]
[391634019,1760712642621,-500.0,0.00024657,2]
[391634020,1760712642630,-500.0,0.00024657,2]
[391634021,1760712642639,-500.0,0.00024657,2]
[391634022,1760712642647,-500.0,0.00024657,2]
[391634023,1760712642658,-500.0,0.00024657,2]
[391634024,1760712642667,-497.38143333,0.00024657,2]
[391634025,1760712642676,-500.0,0.00024657,2]
[391634026,1760712642685,-521.31040891,0.00024657,2]
[391634027,1760712642694,-500.0,0.00024657,2]
[391634028,1760712642703,-500.0,0.00024657,2]
[391634029,1760712642712,-500.0,0.00024657,2]
[391634030,1760712642721,-520.24262725,0.00024657,2]
[391634031,1760712642729,-500.0,0.00024657,2]
[391634032,1760712642739,-500.0,0.00024657,2]
[391634033,1760712642747,-500.0,0.00024657,2]
[391634034,1760712642756,-500.0,0.00024657,2]
[391634035,1760712642765,-501.38843248,0.00024657,2]
[391634036,1760712642774,-500.0,0.00024657,2]
[391634037,1760712642783,-500.0,0.00024657,2]
[391634038,1760712642792,-500.0,0.00024657,2]
[391634039,1760712642801,-501.09872104,0.00024657,2]
[391634040,1760712642810,-500.0,0.00024657,2]
[391634041,1760712642821,-500.0,0.00024657,2]
[391634042,1760712642830,-501.45691747,0.00024657,2]
[391634043,1760712642839,-500.0,0.00024657,2]
[391634044,1760712642847,-500.0,0.00024657,2]
[391634045,1760712642856,-500.0,0.00024657,2]
[391634046,1760712642865,-500.0,0.00024657,2]
[391634047,1760712642874,-500.0,0.00024657,2]
[391634048,1760712642883,-409.71584548,0.00024657,2]
[391634049,1760712642892,-500.0,0.00024657,2]
[391634050,1760712642901,-500.0,0.00024657,2]
[391634051,1760712642910,-500.24501618,0.00024657,2]
[391634052,1760712642919,-623.47962555,0.00024657,2]
[391634053,1760712642927,-500.0,0.00024657,2]
[391634054,1760712642936,-500.0,0.00024657,2]
[391634055,1760712642946,-500.0,0.00024657,2]
[391634056,1760712642954,-501.42932613,0.00024657,2]
[391634057,1760712642963,-500.0,0.00024657,2]
[391634058,1760712642972,-500.84975821,0.00024657,2]
[391634059,1760712642981,-1458.22,0.00024657,2]
[391634060,1760712642990,-389.80719572,0.00024657,2]
[391634062,1760712642998,-500.0,0.00024657,2]
[391634063,1760712643007,-500.0,0.00024657,2]
[391634064,1760712643015,-500.0,0.00024657,2]
[391634065,1760712643024,-456.83713576,0.00024657,2]
[391634066,1760712643032,-500.0,0.00024657,2]
[391634067,1760712643041,-500.0,0.00024657,2]
[391634068,1760712643050,-500.0,0.00024657,2]
[391634069,1760712643058,-500.0,0.00024657,2]
[391634070,1760712643067,-502.06004589,0.00024657,2]
[391634071,1760712643077,-501.03696464,0.00024657,2]
[391634072,1760712643086,-500.0,0.00024657,2]
[391634073,1760712643094,-500.0,0.00024657,2]
[391634074,1760712643103,-501.61411931,0.00024657,2]
[391634076,1760712643112,-500.83880359,0.00024657,2]
[391634077,1760712643120,-503.07052593,0.00024657,2]
[391634078,1760712643129,-292.01934371,0.00024657,2]
[391634080,1760712643138,-555.34249984,0.00024657,2]
[391634081,1760712643146,-500.0,0.00024657,2]
[391634082,1760712643155,-500.0,0.00024657,2]
[391634083,1760712643164,-500.0,0.00024657,2]
[391634084,1760712643173,-389.39652003,0.00024657,2]
[391634085,1760712643181,-500.0,0.00024657,2]
[391634086,1760712643190,-500.0,0.00024657,2]
[391634087,1760712643199,-500.0,0.00024657,2]
[391634088,1760712643208,-500.0,0.00024657,2]
[391634089,1760712643216,-500.0,0.00024657,2]
[391634090,1760712643225,-500.0,0.00024657,2]
[391634091,1760712643234,-500.0,0.00024657,2]
[391634092,1760712643243,-500.0,0.00024657,2]
[391634093,1760712643251,-500.0,0.00024657,2]
[391634094,1760712643260,-401.66319116,0.00024657,2]
[391634095,1760712643269,-500.0,0.00024657,2]
[391634096,1760712643278,-500.0,0.00024657,2]
[391634097,1760712643287,-500.0,0.00024657,2]
[391634098,1760712643295,-512.85228187,0.00024657,2]
[391634099,1760712643304,-208.03907493,0.00024657,2]
[391634100,1760712643313,-505.59,0.00024657,2]
[391634101,1760712643325,-398.642095,0.00024657,2]
[391634102,1760712643334,-500.0,0.00024657,2]
[391634103,1760712643342,-500.0,0.00024657,2]
[391634104,1760712643351,-500.0,0.00024657,2]
[391634105,1760712643362,-500.0,0.00024657,2]
[391634106,1760712643371,-612.35631477,0.00024657,2]
[391634107,1760712643380,-500.78502915,0.00024657,2]
[391634108,1760712643389,-500.0,0.00024657,2]
[391634109,1760712643398,-500.0,0.00024657,2]
[391634110,1760712643407,-500.0,0.00024657,2]
[391634111,1760712643416,-500.0,0.00024657,2]
[391634112,1760712643425,-500.0,0.00024657,2]
[391634113,1760712643434,-500.0,0.00024657,2]
[391634114,1760712643442,-500.0,0.00024657,2]
[391634115,1760712643451,-500.0,0.00024657,2]
[391634116,1760712643460,-500.0,0.00024657,2]
[391634117,1760712643468,-500.0,0.00024657,2]
[391634118,1760712643477,-500.0,0.00024657,2]
[391634119,1760712643486,-501.17771239,0.00024657,2]
[391634120,1760712643495,-500.0,0.00024657,2]
[391634121,1760712643504,-500.51671788,0.00024657,2]
[391634122,1760712643513,-509.48557759,0.00024657,2]
[391634123,1760712643522,-500.0,0.00024657,2]
[391634124,1760712643531,-501.60312216,0.00024657,2]
[391634125,1760712643539,-501.79517519,0.00024657,2]
[391634126,1760712643548,-500.0,0.00024657,2]
[391634127,1760712643556,-500.0,0.00024657,2]
[391634128,1760712643565,-500.0,0.00024657,2]
[391634129,1760712643577,-501.45200246,0.00024657,2]
[391634130,1760712643586,-500.0,0.00024657,2]
[391634131,1760712643595,-500.0,0.00024657,2]
[391634133,1760712643604,-500.0,0.00024657,2]
[391634136,1760712643617,-681.76,0.00024657,2]
[391634138,1760712643626,-681.76,0.00024657,2]
[391634140,1760712643634,-500.0,0.00024657,2]
[391634142,1760712643643,-681.76,0.00024657,2]
[391634144,1760712643652,-506.26113732,0.00024657,2]
[391634145,1760712643661,-681.76,0.00024657,2]
[391634147,1760712643670,-681.76,0.00024657,2]
[391634149,1760712643679,-681.76,0.00024657,2]
[391634151,1760712643688,-681.76,0.00024657,2]
[391634153,1760712643697,-681.76,0.00024657,2]
[391634155,1760712643706,-500.91291988,0.00024657,2]
[391634157,1760712643715,-681.76,0.00024657,2]
[391634159,1760712643724,-681.76,0.00024657,2]
[391634161,1760712643733,-500.0,0.00024657,2]
[391634163,1760712643742,-500.0,0.00024657,2]
[391634165,1760712643751,-500.0,0.00024657,2]
[391634167,1760712643759,-500.0,0.00024657,2]
[391634169,1760712643768,-500.0,0.00024657,2]
[391634171,1760712643777,-500.0,0.00024657,2]
[391634173,1760712643786,-500.0,0.00024657,2]
[391634175,1760712643795,-500.92999916,0.00024657,2]
[391634177,1760712643804,-500.0,0.00024657,2]
[391634179,1760712643813,-500.0,0.00024657,2]
[391634181,1760712643825,-500.0,0.00024657,2]
[391634183,1760712643836,-500.0,0.00024657,2]
[391634185,1760712643845,-500.0,0.00024657,2]
[391634187,1760712643854,-500.0,0.00024657,2]
[391634189,1760712643863,-500.0,0.00024657,2]
[391634191,1760712643872,-500.0,0.00024657,2]
[391634193,1760712643881,-500.0,0.00024657,2]
[391634195,1760712643890,-837.59,0.00024657,2]
[391634197,1760712643899,-504.47417496,0.00024657,2]
[391634199,1760712643907,-500.0,0.00024657,2]
[391634200,1760712643916,-500.0,0.00024657,2]
[391634201,1760712643925,-500.0,0.00024657,2]
[391634202,1760712643934,-500.0,0.00024657,2]
[391634203,1760712643942,-500.0,0.00024657,2]
[391634204,1760712643952,-500.0,0.00024657,2]
[391634205,1760712643961,-603.58602398,0.00024657,2]
[391634206,1760712643969,-500.0,0.00024657,2]
[391634207,1760712643978,-500.0,0.00024657,2]
[391634208,1760712643987,-500.0,0.00024657,2]
[391634209,1760712643996,-500.0,0.00024657,2]
[391634210,1760712644005,-500.0,0.00024657,2]
[391634211,1760712644015,-500.34932488,0.00024657,2]
[391634212,1760712644023,-500.0,0.00024657,2]
[391634213,1760712644032,-511.41180676,0.00024657,2]
[391634214,1760712644041,-2355.17,0.00024657,2]
[391634215,1760712644050,-500.0,0.00024657,2]
[391634216,1760712644059,-500.0,0.00024657,2]
[391634217,1760712644067,-500.0,0.00024657,2]
[391634218,1760712644079,-509.89723452,0.00024657,2]
[391634219,1760712644088,-500.0,0.00024657,2]
[391634220,1760712644097,-500.61396884,0.00024657,2]
[391634221,1760712644106,-500.0,0.00024657,2]
[391634222,1760712644115,-151.0,0.00024657,7]
[391634223,1760712644123,-151.0,0.00024657,7]
[391634224,1760712644132,-500.0,0.00024657,2]
[391634225,1760712644141,-500.12642114,0.00024657,2]
[391634226,1760712644150,-444.08711146,0.00024657,2]
[391634227,1760712644159,-500.0,0.00024657,2]
[391634228,1760712644168,-500.0,0.00024657,2]
[391634229,1760712644176,-500.0,0.00024657,2]
[391634230,1760712644185,-151.0,0.00024657,7]
[391634231,1760712644194,-500.0,0.00024657,2]
[391634232,1760712644203,-500.0,0.00024657,2]
[391634233,1760712644212,-500.0,0.00024657,2]
[391634234,1760712644221,-500.0,0.00024657,2]
[391634235,1760712644230,-541.72511379,0.00024657,2]
[391634236,1760712644239,-500.0,0.00024657,2]
[391634237,1760712644248,-500.0,0.00024657,2]
[391634238,1760712644256,-500.0,0.00024657,2]
[391634239,1760712644265,-500.31968849,0.00024657,2]
[391634240,1760712644274,-513.36,0.00024657,2]
[391634241,1760712644283,-500.0,0.00024657,2]
[391634242,1760712644292,-151.0,0.00024657,7]
[391634243,1760712644301,-500.0,0.00024657,2]
[391634244,1760712644309,-500.0,0.00024657,2]
[391634245,1760712644319,-500.0,0.00024657,2]
[391634246,1760712644329,-500.0,0.00024657,2]
[391634247,1760712644338,-500.0,0.00024657,2]
[391634248,1760712644347,-369.0063053,0.00024657,2]
[391634249,1760712644357,-500.0,0.00024657,2]
[391634250,1760712644366,-500.0,0.00024657,2]
[391634251,1760712644375,-500.9906443,0.00024657,2]
[391634252,1760712644383,-500.0,0.00024657,2]
[391634253,1760712644393,-500.0,0.00024657,2]
[391634254,1760712644402,-500.0,0.00024657,2]
[391634255,1760712644411,-500.0,0.00024657,2]
[391634256,1760712644420,-500.15603132,0.00024657,2]
[391634257,1760712644429,-500.58242348,0.00024657,2]
[391634258,1760712644438,-500.0,0.00024657,2]
[391634259,1760712644447,-151.0,0.00024657,7]
[391634260,1760712644455,-413.48606077,0.00024657,2]
[391634261,1760712644464,-500.0,0.00024657,2]
[391634262,1760712644474,-500.0,0.00024657,2]
[391634263,1760712644483,-500.0,0.00024657,2]
[391634264,1760712644491,-1192.44,0.00024657,2]
[391634265,1760712644500,-500.0,0.00024657,2]
[391634266,1760712644509,-500.0,0.00024657,2]
[391634267,1760712644518,-500.0,0.00024657,2]
[391634268,1760712644527,-501.1730539,0.00024657,2]
[391634269,1760712644536,-654.23,0.00024657,2]
[391634270,1760712644544,-196.87050629,0.00024657,2]
[391634271,1760712644553,-205.216339,0.00024657,7]
[391634272,1760712644562,-500.0,0.00024657,2]
[391634273,1760712644575,-500.43741803,0.00024657,2]
[391634274,1760712644583,-205.216339,0.00024657,7]
[391634275,1760712644592,-500.0,0.00024657,2]
[391634276,1760712644601,-205.216339,0.00024657,7]
[391634277,1760712644614,-500.81022445,0.00024657,2]
[391634278,1760712644622,-205.216339,0.00024657,7]
[391634279,1760712644631,-500.0,0.00024657,2]
[391634280,1760712644640,-2969.48,0.00024657,2]
[391634281,1760712644649,-480.51550222,0.00024657,2]
[391634282,1760712644658,-500.0,0.00024657,2]
[391634283,1760712644667,-500.0,0.00024657,2]
[391634284,1760712644676,-501.05396346,0.00024657,2]
[391634285,1760712644686,-500.0,0.00024657,2]
[391634286,1760712644695,-500.84820284,0.00024657,2]
[391634287,1760712644704,-423.08213886,0.00024657,2]
[391634288,1760712644713,-500.0,0.00024657,2]
[391634289,1760712644722,-500.0,0.00024657,2]
[391634290,1760712644730,-158.51571642,0.00024657,2]
[391634291,1760712644740,-500.0,0.00024657,2]
[391634292,1760712644749,-500.0,0.00024657,2]
[391634293,1760712644763,-151.0,0.00024657,7]
[391634294,1760712644772,-151.0,0.00024657,7]
[391634295,1760712644781,-500.17,0.00024657,2]
[391634296,1760712644790,-1595.99,0.00024657,2]
[391634297,1760712644799,-151.0,0.00024657,7]
[391634298,1760712644807,-500.0,0.00024657,2]
[391634299,1760712644816,-500.0,0.00024657,2]
[391634300,1760712644828,-2220.63,0.00024657,2]
[391634301,1760712644837,-151.0,0.00024657,7]
[391634302,1760712644846,-151.0,0.00024657,7]
[391634303,1760712644855,-151.0,0.00024657,7]
[391634304,1760712644864,-500.0,0.00024657,2]
[391634305,1760712644873,-151.0,0.00024657,7]
[391634306,1760712644882,-366.193917,0.00024657,7]
[391634307,1760712644891,-151.0,0.00024657,7]
[391634308,1760712644900,-366.193917,0.00024657,7]
[391634309,1760712644909,-500.0,0.00024657,2]
[391634310,1760712644918,-366.193917,0.00024657,7]
[391634311,1760712644927,-151.0,0.00024657,7]
[391634312,1760712645099,-500.0,0.00024657,2]
[391634313,1760712645135,-500.0,0.00024657,2]
[391634314,1760712645144,-500.0,0.00024657,2]
[391634315,1760712645154,-167.706689,0.00024657,7]
[391634316,1760712645163,-500.0,0.00024657,2]
[391634317,1760712645172,-151.0,0.00024657,7]
[391634318,1760712645181,-366.193917,0.00024657,7]
[391634319,1760712645190,-167.706689,0.00024657,7]
[391634320,1760712645199,-151.0,0.00024657,7]
[391634321,1760712645208,-506.60356767,0.00024657,2]
[391634322,1760712645217,-167.706689,0.00024657,7]
[391634323,1760712645226,-522.52691447,0.00024657,2]
[391634324,1760712645235,-151.0,0.00024657,7]
[391634325,1760712645244,-500.2445765,0.00024657,2]
[391634326,1760712645253,-350.8745913,0.00024657,2]
[391634327,1760712645262,-500.0,0.00024657,2]
[391634328,1760712645272,-617.84138758,0.00024657,2]
[391634329,1760712645281,-167.706689,0.00024657,7]
[391634330,1760712645290,-500.44481327,0.00024657,2]
[391634331,1760712645299,-500.0,0.00024657,2]
[391634332,1760712645308,-500.0,0.00024657,2]
[391634333,1760712645317,-500.0,0.00024657,2]
[391634334,1760712645329,-500.0,0.00024657,2]
[391634335,1760712645338,-554.04,0.00024657,2]
[391634336,1760712645347,-500.0,0.00024657,2]
[391634337,1760712645356,-500.0,0.00024657,2]
[391634338,1760712645366,-500.0,0.00024657,2]
[391634339,1760712645375,-500.0,0.00024657,2]
[391634340,1760712645384,-500.0,0.00024657,2]
[391634341,1760712645393,-500.0,0.00024657,2]
[391634342,1760712645402,-500.0,0.00024657,2]
[391634343,1760712645411,-500.0,0.00024657,2]
[391634344,1760712645420,-500.0,0.00024657,2]
[391634345,1760712645429,-500.0,0.00024657,2]
[391634346,1760712645438,-500.0,0.00024657,2]
[391634347,1760712645447,-500.0,0.00024657,2]
[391634348,1760712645457,-500.40945085,0.00024657,2]
[391634349,1760712645466,-500.0,0.00024657,2]
[391634350,1760712645475,-500.0,0.00024657,2]
[391634351,1760712645484,-500.0,0.00024657,2]
[391634352,1760712645493,-500.0,0.00024657,2]
[391634353,1760712645503,-619.82,0.00024657,2]
[391634354,1760712645512,-500.0,0.00024657,2]
[391634355,1760712645521,-500.0,0.00024657,2]
[391634356,1760712645530,-500.0,0.00024657,2]
[391634357,1760712645538,-500.0,0.00024657,2]
[391634358,1760712645548,-500.0,0.00024657,2]
[391634359,1760712645557,-179.38492247,0.00024657,2]
[391634360,1760712645566,-950.66,0.00024657,2]
[391634361,1760712645577,-500.0,0.00024657,2]
[391634362,1760712645587,-500.0,0.00024657,2]
[391634363,1760712645596,-500.0,0.00024657,2]
[391634364,1760712645605,-500.0,0.00024657,2]
[391634365,1760712645618,-500.0,0.00024657,2]
[391634366,1760712645627,-500.85699119,0.00024657,2]
[391634367,1760712645636,-151.0,0.00024657,7]
[391634368,1760712645645,-1855.6,0.00024657,2]
[391634369,1760712645656,-505.39784062,0.00024657,2]
[391634370,1760712645665,-500.0,0.00024657,2]
[391634371,1760712645674,-151.0,0.00024657,7]
[391634372,1760712645683,-722.3,0.00024657,2]
[391634373,1760712645694,-500.0,0.00024657,2]
[391634374,1760712645702,-213.00042081,0.00024657,7]
[391634375,1760712645712,-500.0,0.00024657,2]
[391634376,1760712645720,-500.0,0.00024657,2]
[391634377,1760712645729,-151.0,0.00024657,7]
[391634378,1760712645738,-649.92,0.00024657,2]
[391634379,1760712645747,-500.0,0.00024657,2]
[391634380,1760712645756,-151.0,0.00024657,7]
[391634381,1760712645765,-500.2727282,0.00024657,2]
[391634382,1760712645774,-500.0,0.00024657,2]
[391634383,1760712645783,-500.0,0.00024657,2]
[391634384,1760712645792,-500.0,0.00024657,2]
[391634385,1760712645801,-500.0,0.00024657,2]
[391634386,1760712645810,-523.65696936,0.00024657,2]
[391634387,1760712645819,-524.91659139,0.00024657,2]
[391634388,1760712645830,-549.16280787,0.00024657,2]
[391634389,1760712645839,-500.0,0.00024657,2]
[391634390,1760712645847,-500.0,0.00024657,2]
[391634391,1760712645856,-500.0,0.00024657,2]
[391634392,1760712645865,-500.0,0.00024657,2]
[391634393,1760712645874,-501.37274405,0.00024657,2]
[391634394,1760712645883,-438.45704586,0.00024657,2]
[391634395,1760712645892,-1437.69,0.00024657,2]
[391634396,1760712645901,-500.0,0.00024657,2]
[391634398,1760712645910,-2212.04,0.00024657,2]
[391634400,1760712645919,-502.47165569,0.00024657,2]
[391634402,1760712645928,-500.0,0.00024657,2]
[391634404,1760712645937,-500.0,0.00024657,2]
[391634405,1760712645945,-500.0,0.00024657,2]
[391634407,1760712645954,-151.0,0.00024657,7]
[391634409,1760712645963,-586.78921413,0.00024657,2]
[391634410,1760712645972,-151.0,0.00024657,7]
[391634411,1760712645981,-500.82068925,0.00024657,2]
[391634412,1760712645990,-637.25581468,0.00024657,2]
[391634413,1760712645999,-500.0,0.00024657,2]
[391634414,1760712646008,-500.0,0.00024657,2]
[391634415,1760712646017,-500.0,0.00024657,2]
[391634416,1760712646027,-506.02068283,0.00024657,2]
[391634417,1760712646035,-470.43893288,0.00024657,2]
[391634418,1760712646045,-500.0,0.00024657,2]
[391634419,1760712646054,-1120.11,0.00024657,2]
[391634420,1760712646063,-1867.215574,0.00024657,2]
[391634421,1760712646073,-151.0,0.00024657,7]
[391634422,1760712646083,-1688.918113,0.00024657,2]
[391634423,1760712646093,-500.0,0.00024657,2]
[391634424,1760712646102,-151.0,0.00024657,7]
[391634425,1760712646111,-500.0,0.00024657,2]
[391634426,1760712646120,-953.148162,0.00024657,2]
[391634427,1760712646129,-63850.260559,0.00024657,2]
[391634428,1760712646138,-635.432108,0.00024657,2]
[391634429,1760712646147,-500.10664795,0.00024657,2]
[391634430,1760712646156,-501.42712897,0.00024657,2]
[391634431,1760712646165,-500.0,0.00024657,2]
[391634432,1760712646175,-500.0,0.00024657,2]
[391634433,1760712646184,-36735.938127,0.00024657,2]
[391634434,1760712646193,-500.58795676,0.00024657,2]
[391634435,1760712646203,-151.0,0.00024657,7]
[391634436,1760712646211,-500.0,0.00024657,2]
[391634437,1760712646220,-500.0,0.00024657,2]
[391634438,1760712646229,-29588.510886,0.00024657,2]
[391634439,1760712646238,-503.74088397,0.00024657,2]
[391634440,1760712646248,-500.0,0.00024657,2]
[391634441,1760712646257,-151.0,0.00024657,7]
[391634442,1760712646267,-151.0,0.00024657,7]
[391634443,1760712646277,-501.21386612,0.00024657,2]
[391634444,1760712646286,-151.0,0.00024657,7]
[391634445,1760712646296,-500.0,0.00024657,2]
[391634446,1760712646304,-500.0,0.00024657,2]
[391634447,1760712646314,-500.0,0.00024657,2]
[391634448,1760712646324,-151.49143,0.00024657,7]
[391634449,1760712646333,-500.0,0.00024657,2]
[391634450,1760712646342,-501.26002611,0.00024657,2]
[391634451,1760712646351,-151.0,0.00024657,7]
[391634452,1760712646360,-500.0,0.00024657,2]
[391634453,1760712646370,-500.0,0.00024657,2]
[391634454,1760712646379,-151.00000005,0.00024657,7]
[391634455,1760712646388,-500.0,0.00024657,2]
[391634456,1760712646397,-595.92710128,0.00024657,2]
[391634457,1760712646407,-500.0,0.00024657,2]
[391634458,1760712646416,-500.0,0.00024657,2]
[391634459,1760712646425,-500.84769744,0.00024657,2]
[391634460,1760712646435,-583.10772371,0.00024657,2]
[391634461,1760712646444,-500.0,0.00024657,2]
[391634462,1760712646453,-500.0,0.00024657,2]
[391634463,1760712646463,-500.0,0.00024657,2]
[391634464,1760712646472,-500.0,0.00024657,2]
[391634465,1760712646481,-500.0,0.00024657,2]
[391634466,1760712646491,-500.0,0.00024657,2]
[391634467,1760712646500,-500.0,0.00024657,2]
[391634468,1760712646509,-500.0,0.00024657,2]
[391634469,1760712646518,-500.99107387,0.00024657,2]
[391634470,1760712646527,-854.16,0.00024657,2]
[391634471,1760712646536,-500.0,0.00024657,2]
[391634472,1760712646546,-513.56362161,0.00024657,2]
[391634473,1760712646555,-501.69406423,0.00024657,2]
[391634474,1760712646564,-151.0,0.00024657,7]
[391634475,1760712646575,-500.0,0.00024657,2]
[391634476,1760712646585,-180.052743,0.00024657,7]
[391634477,1760712646594,-500.0,0.00024657,2]
[391634478,1760712646603,-500.15262092,0.00024657,2]
[391634479,1760712646615,-151.0,0.00024657,7]
[391634480,1760712646624,-500.0,0.00024657,2]
[391634481,1760712646633,-500.0,0.00024657,2]
[391634482,1760712646642,-632.58,0.00024657,2]
[391634483,1760712646651,-500.0,0.00024657,2]
[391634484,1760712646663,-500.0,0.00024657,2]
[391634485,1760712646673,-500.4542541,0.00024657,2]
[391634486,1760712646682,-151.0,0.00024657,7]
[391634487,1760712646694,-500.0,0.00024657,2]
[391634488,1760712646703,-500.0,0.00024657,2]
[391634489,1760712646712,-293.225437,0.00024657,2]
[391634490,1760712646721,-151.0,0.00024657,7]
[391634491,1760712646731,-500.0,0.00024657,2]
[391634492,1760712646740,-564.7352444,0.00024657,2]
[391634493,1760712646749,-178.838485,0.00024657,7]
[391634494,1760712646758,-151.0,0.00024657,7]
[391634495,1760712646767,-500.0,0.00024657,2]
[391634496,1760712646776,-500.0,0.00024657,2]